[Event "Live Chess"]
[Site "Chess.com"]
[Date "2024.06.01"]
[Round "-"]
[White "CennyddB"]
[Black "yarek"]
[Result "0-1"]
[WhiteElo "1132"]
[BlackElo "1734"]
[TimeControl "300"]
[EndTime "10:19:48 PDT"]
[Termination "yarek won by checkmate"]

1. d4 {[%clk 0:04:57.7]} 1... g6 {[%clk 0:04:56]} 2. Nf3 {[%clk 0:04:56.1]} 2...
Bg7 {[%clk 0:04:55.5]} 3. g3 {[%clk 0:04:53.9]} 3... c6 {[%clk 0:04:55]} 4. Bg2
{[%clk 0:04:52.3]} 4... d5 {[%clk 0:04:54.6]} 5. O-O {[%clk 0:04:44]} 5... Nd7
{[%clk 0:04:52.9]} 6. b3 {[%clk 0:04:39.4]} 6... e5 {[%clk 0:04:52.3]} 7. Bb2
{[%clk 0:04:33.9]} 7... e4 {[%clk 0:04:49.4]} 8. Nfd2 {[%clk 0:04:22.3]} 8...
Ngf6 {[%clk 0:04:46.1]} 9. c4 {[%clk 0:04:20.8]} 9... O-O {[%clk 0:04:41.4]} 10.
Nc3 {[%clk 0:04:11.7]} 10... a6 {[%clk 0:04:38.5]} 11. cxd5 {[%clk 0:04:01.1]}
11... cxd5 {[%clk 0:04:37.1]} 12. Rc1 {[%clk 0:03:52.5]} 12... Nb6 {[%clk
0:04:21.5]} 13. Ba3 {[%clk 0:03:40.8]} 13... Re8 {[%clk 0:04:19.4]} 14. Bc5
{[%clk 0:03:38.8]} 14... Bd7 {[%clk 0:04:11.4]} 15. a4 {[%clk 0:03:32]} 15...
Bc6 {[%clk 0:04:06.7]} 16. f3 {[%clk 0:03:19.1]} 16... e3 {[%clk 0:03:59.7]} 17.
Ndb1 {[%clk 0:03:16.8]} 17... Nbd7 {[%clk 0:03:52.7]} 18. Bb4 {[%clk 0:03:13.4]}
18... a5 {[%clk 0:03:46.6]} 19. Bc5 {[%clk 0:03:06]} 19... b6 {[%clk 0:03:45]}
20. Bd6 {[%clk 0:02:54.7]} 20... Nf8 {[%clk 0:03:39.1]} 21. Bf4 {[%clk
0:02:52.6]} 21... Rc8 {[%clk 0:03:32.1]} 22. Qd3 {[%clk 0:02:47.6]} 22... Nh5
{[%clk 0:03:22.2]} 23. Bxe3 {[%clk 0:02:46.1]} 23... Ne6 {[%clk 0:03:10.5]} 24.
Nb5 {[%clk 0:02:36]} 24... Bxb5 {[%clk 0:03:07.1]} 25. Qxb5 {[%clk 0:02:28]}
25... Rxc1 {[%clk 0:03:02.2]} 26. Rxc1 {[%clk 0:02:26.6]} 26... Nxd4 {[%clk
0:02:59.2]} 27. Qd3 {[%clk 0:01:49.2]} 27... Nxe2+ {[%clk 0:02:42.3]} 28. Qxe2
{[%clk 0:01:48.2]} 28... d4 {[%clk 0:02:36.2]} 29. Qd3 {[%clk 0:01:37]} 29...
Rxe3 {[%clk 0:02:32.7]} 30. Qd2 {[%clk 0:01:19.2]} 30... Rxb3 {[%clk 0:02:28.7]}
31. Rc4 {[%clk 0:01:09.9]} 31... Rxb1+ {[%clk 0:02:23.7]} 32. Bf1 {[%clk
0:01:07.5]} 32... d3 {[%clk 0:02:15.6]} 33. Kf2 {[%clk 0:01:01.1]} 33... Bd4+
{[%clk 0:02:07.8]} 34. Kg2 {[%clk 0:01:00.2]} 34... Bc5 {[%clk 0:01:57.2]} 35.
Qa2 {[%clk 0:00:41.2]} 35... d2 {[%clk 0:01:48.8]} 36. Be2 {[%clk 0:00:26.8]}
36... d1=Q {[%clk 0:01:43.4]} 37. Bxd1 {[%clk 0:00:24.3]} 37... Qxd1 {[%clk
0:01:40.5]} 38. Re4 {[%clk 0:00:14.9]} 38... Qf1# {[%clk 0:01:37.8]} 0-1

[Event "Live Chess"]
[Site "Chess.com"]
[Date "2024.06.01"]
[Round "-"]
[White "Ksenia_2013"]
[Black "Yarigo"]
[Result "0-1"]
[WhiteElo "785"]
[BlackElo "2389"]
[TimeControl "300"]
[EndTime "10:20:05 PDT"]
[Termination "Yarigo won by checkmate"]

1. e4 {[%clk 0:04:55.2]} 1... e5 {[%clk 0:04:58.2]} 2. Nf3 {[%clk 0:04:52.5]}
2... Nc6 {[%clk 0:04:56.5]} 3. Bc4 {[%clk 0:04:50.7]} 3... Nf6 {[%clk
0:04:53.7]} 4. Ng5 {[%clk 0:04:44.9]} 4... d5 {[%clk 0:04:51.4]} 5. exd5 {[%clk
0:04:42.4]} 5... Na5 {[%clk 0:04:49.7]} 6. Bb3 {[%clk 0:04:35.5]} 6... Nxb3
{[%clk 0:04:45.4]} 7. cxb3 {[%clk 0:04:31.7]} 7... h6 {[%clk 0:04:44]} 8. Nxf7
{[%clk 0:04:29.1]} 8... Kxf7 {[%clk 0:04:41.3]} 9. Qf3 {[%clk 0:04:25.4]} 9...
Qxd5 {[%clk 0:04:37.7]} 10. Qe3 {[%clk 0:04:11.8]} 10... Qxg2 {[%clk 0:04:31.6]}
11. Rf1 {[%clk 0:04:05.9]} 11... Bh3 {[%clk 0:04:29.5]} 12. Ke2 {[%clk
0:03:57.6]} 12... Qxf1+ {[%clk 0:04:25.6]} 13. Kf3 {[%clk 0:03:55.8]} 13... Qd1+
{[%clk 0:04:15.1]} 14. Kg3 {[%clk 0:03:52.1]} 14... Qg4# {[%clk 0:04:12.8]} 0-1

[Event "Live Chess"]
[Site "Chess.com"]
[Date "2024.06.01"]
[Round "-"]
[White "KyryloPoluliakh"]
[Black "Enhard"]
[Result "1-0"]
[WhiteElo "1489"]
[BlackElo "1412"]
[TimeControl "300"]
[EndTime "10:20:20 PDT"]
[Termination "KyryloPoluliakh won by resignation"]

1. c4 {[%clk 0:04:57.6]} 1... c6 {[%clk 0:04:59.2]} 2. Nc3 {[%clk 0:04:56.2]}
2... d5 {[%clk 0:04:58.2]} 3. cxd5 {[%clk 0:04:52.9]} 3... cxd5 {[%clk
0:04:57.2]} 4. d4 {[%clk 0:04:52.3]} 4... Nf6 {[%clk 0:04:56.1]} 5. g3 {[%clk
0:04:51.6]} 5... Nc6 {[%clk 0:04:51.8]} 6. Bg2 {[%clk 0:04:50.2]} 6... Bf5
{[%clk 0:04:49]} 7. a3 {[%clk 0:04:43.6]} 7... a6 {[%clk 0:04:47.6]} 8. e3
{[%clk 0:04:42.2]} 8... e6 {[%clk 0:04:46.2]} 9. Nge2 {[%clk 0:04:41.2]} 9...
Bd6 {[%clk 0:04:42.7]} 10. O-O {[%clk 0:04:37.2]} 10... O-O {[%clk 0:04:41.3]}
11. f3 {[%clk 0:04:21.6]} 11... h6 {[%clk 0:04:39.7]} 12. e4 {[%clk 0:04:11]}
12... dxe4 {[%clk 0:04:38.1]} 13. fxe4 {[%clk 0:04:10.3]} 13... Bg4 {[%clk
0:04:20.2]} 14. e5 {[%clk 0:04:06]} 14... Bxe2 {[%clk 0:04:12.6]} 15. Nxe2
{[%clk 0:03:58.4]} 15... Nxd4 {[%clk 0:04:05.5]} 16. Qxd4 {[%clk 0:03:52.7]}
16... Rc8 {[%clk 0:03:32.4]} 17. exd6 {[%clk 0:03:46.2]} 17... Qd7 {[%clk
0:03:13.7]} 18. Bf4 {[%clk 0:03:40.6]} 18... Ne8 {[%clk 0:03:06.7]} 19. Rac1
{[%clk 0:03:30.1]} 19... Rd8 {[%clk 0:03:04.2]} 20. Rfd1 {[%clk 0:03:22.5]}
20... g5 {[%clk 0:02:55]} 21. Bd2 {[%clk 0:03:09.5]} 21... Nxd6 {[%clk
0:02:43.1]} 22. Bb4 {[%clk 0:03:04.8]} 22... e5 {[%clk 0:02:39.6]} 23. Qxd6
{[%clk 0:03:01.6]} 23... Qb5 {[%clk 0:02:33]} 24. Qxd8 {[%clk 0:02:44.7]} 24...
Rxd8 {[%clk 0:02:31.2]} 25. Rxd8+ {[%clk 0:02:42.5]} 25... Kg7 {[%clk
0:02:30.5]} 26. Rd2 {[%clk 0:02:32.9]} 26... Qb6+ {[%clk 0:02:22.7]} 27. Kh1
{[%clk 0:02:27.6]} 27... Qe3 {[%clk 0:02:20.5]} 28. Rdc2 {[%clk 0:02:19.8]}
28... a5 {[%clk 0:02:06.7]} 29. Bxa5 {[%clk 0:02:14.3]} 29... Qb3 {[%clk
0:01:54.6]} 30. Bc3 {[%clk 0:02:10]} 30... Qe6 {[%clk 0:01:48.7]} 31. Bxb7
{[%clk 0:02:06.3]} 31... Qb6 {[%clk 0:01:41.2]} 32. Bg2 {[%clk 0:02:03.7]} 32...
Qe3 {[%clk 0:01:36.4]} 33. b4 {[%clk 0:01:59]} 33... Qa7 {[%clk 0:01:33.8]} 34.
Bxe5+ {[%clk 0:01:54.5]} 34... Kg6 {[%clk 0:01:27.2]} 35. Be4+ {[%clk
0:01:51.6]} 35... f5 {[%clk 0:01:23.5]} 36. Rc6+ {[%clk 0:01:44.7]} 36... Kh5
{[%clk 0:01:22.1]} 37. g4+ {[%clk 0:01:35.4]} 37... fxg4 {[%clk 0:01:18.9]} 38.
Bg6+ {[%clk 0:01:30.4]} 38... Kh4 {[%clk 0:01:14.4]} 39. Bg3+ {[%clk 0:01:27.7]}
39... Kh3 {[%clk 0:01:11.9]} 40. Ng1+ {[%clk 0:01:26.5]} 40... Qxg1+ {[%clk
0:01:05.9]} 1-0

[Event "Live Chess"]
[Site "Chess.com"]
[Date "2024.06.01"]
[Round "-"]
[White "A3ndrey9"]
[Black "Ninifu"]
[Result "0-1"]
[WhiteElo "1258"]
[BlackElo "2045"]
[TimeControl "300"]
[EndTime "10:20:30 PDT"]
[Termination "Ninifu won by resignation"]

1. Nf3 {[%clk 0:04:57.3]} 1... Nf6 {[%clk 0:04:58.2]} 2. d4 {[%clk 0:04:56.1]}
2... g6 {[%clk 0:04:57.1]} 3. c4 {[%clk 0:04:55.6]} 3... Bg7 {[%clk 0:04:56.4]}
4. Nc3 {[%clk 0:04:55.1]} 4... O-O {[%clk 0:04:55.8]} 5. e4 {[%clk 0:04:54.5]}
5... d6 {[%clk 0:04:55.3]} 6. g3 {[%clk 0:04:54]} 6... e5 {[%clk 0:04:54.7]} 7.
dxe5 {[%clk 0:04:50.3]} 7... dxe5 {[%clk 0:04:53.3]} 8. Qxd8 {[%clk 0:04:49.3]}
8... Rxd8 {[%clk 0:04:52.6]} 9. Nxe5 {[%clk 0:04:48.4]} 9... Re8 {[%clk
0:04:40.5]} 10. Bf4 {[%clk 0:04:37.3]} 10... Nxe4 {[%clk 0:04:36.7]} 11. Nxe4
{[%clk 0:04:34.4]} 11... Bxe5 {[%clk 0:04:36]} 12. Bxe5 {[%clk 0:04:14.2]} 12...
Rxe5 {[%clk 0:04:31.7]} 13. Bg2 {[%clk 0:04:13.3]} 13... f5 {[%clk 0:04:21.9]}
14. f4 {[%clk 0:04:06.6]} 14... Re8 {[%clk 0:04:16.8]} 15. O-O {[%clk
0:04:01.5]} 15... fxe4 {[%clk 0:04:15.9]} 16. Rfe1 {[%clk 0:04:00]} 16... Bf5
{[%clk 0:04:10.6]} 17. h3 {[%clk 0:03:58.3]} 17... h5 {[%clk 0:04:09]} 18. Rad1
{[%clk 0:03:52.7]} 18... Nc6 {[%clk 0:04:07.5]} 19. a3 {[%clk 0:03:50.1]} 19...
Rad8 {[%clk 0:03:56]} 20. Rxd8 {[%clk 0:03:46.4]} 20... Rxd8 {[%clk 0:03:54.8]}
21. Bxe4 {[%clk 0:03:44.3]} 21... Bxe4 {[%clk 0:03:42.6]} 22. Rxe4 {[%clk
0:03:42.8]} 22... Kf7 {[%clk 0:03:42.1]} 23. b4 {[%clk 0:03:25.2]} 23... Re8
{[%clk 0:03:41]} 24. Rxe8 {[%clk 0:03:17.3]} 24... Kxe8 {[%clk 0:03:40.4]} 25.
Kf2 {[%clk 0:03:16.2]} 25... Ke7 {[%clk 0:03:38.7]} 26. Ke3 {[%clk 0:03:15.3]}
26... Ke6 {[%clk 0:03:37.5]} 27. Ke4 {[%clk 0:03:14.6]} 27... a6 {[%clk
0:03:28.8]} 28. g4 {[%clk 0:03:13.2]} 28... hxg4 {[%clk 0:03:27.5]} 29. hxg4
{[%clk 0:03:12.5]} 29... Ne7 {[%clk 0:03:26.7]} 30. a4 {[%clk 0:03:07.4]} 30...
b6 {[%clk 0:03:15.1]} 31. c5 {[%clk 0:02:29.1]} 31... bxc5 {[%clk 0:03:12.1]}
32. b5 {[%clk 0:02:28.5]} 32... a5 {[%clk 0:02:51.6]} 33. f5+ {[%clk 0:01:35.1]}
33... gxf5+ {[%clk 0:02:49.9]} 34. gxf5+ {[%clk 0:01:35]} 34... Nxf5 {[%clk
0:02:49.3]} 35. Kf4 {[%clk 0:01:34.9]} 35... Nd4 {[%clk 0:02:46.7]} 36. Ke4
{[%clk 0:01:33.5]} 36... Kd6 {[%clk 0:02:35.2]} 37. Kd3 {[%clk 0:01:31.7]} 37...
Kd5 {[%clk 0:02:34.5]} 38. Kc3 {[%clk 0:01:28.3]} 38... c4 {[%clk 0:02:29.9]}
39. Kb2 {[%clk 0:01:26.5]} 39... Ne2 {[%clk 0:02:26]} 40. Kc2 {[%clk 0:01:22.2]}
40... Kd4 {[%clk 0:02:24.3]} 41. Kd2 {[%clk 0:01:20.2]} 41... Nf4 {[%clk
0:02:23.1]} 42. Kc2 {[%clk 0:01:19]} 42... Nd5 {[%clk 0:02:22.5]} 43. Kd2 {[%clk
0:01:17.9]} 43... c3+ {[%clk 0:02:21.7]} 44. Kc2 {[%clk 0:01:17.1]} 44... Nb4+
{[%clk 0:02:21.1]} 45. Kb3 {[%clk 0:01:16.1]} 45... Kd3 {[%clk 0:02:16.4]} 46.
Ka3 {[%clk 0:01:06.9]} 46... Kd2 {[%clk 0:02:13.6]} 47. Kb3 {[%clk 0:01:05.1]}
47... c2 {[%clk 0:02:11.8]} 0-1

[Event "Live Chess"]
[Site "Chess.com"]
[Date "2024.06.01"]
[Round "-"]
[White "viktor_forever1994"]
[Black "Rusty_Bridges"]
[Result "1-0"]
[WhiteElo "1404"]
[BlackElo "1512"]
[TimeControl "300"]
[EndTime "10:20:43 PDT"]
[Termination "viktor_forever1994 won by checkmate"]

1. e4 {[%clk 0:04:58.4]} 1... d6 {[%clk 0:04:56.2]} 2. d4 {[%clk 0:04:56.3]}
2... Nf6 {[%clk 0:04:52.6]} 3. Nc3 {[%clk 0:04:54.8]} 3... Nbd7 {[%clk
0:04:51.7]} 4. Nf3 {[%clk 0:04:53.7]} 4... h6 {[%clk 0:04:37.3]} 5. Bc4 {[%clk
0:04:52.7]} 5... e5 {[%clk 0:04:34.4]} 6. dxe5 {[%clk 0:04:51]} 6... dxe5 {[%clk
0:04:34.3]} 7. O-O {[%clk 0:04:46.1]} 7... c6 {[%clk 0:04:31.4]} 8. Be3 {[%clk
0:04:37]} 8... Qc7 {[%clk 0:04:30]} 9. Qd2 {[%clk 0:04:23.6]} 9... Be7 {[%clk
0:04:27.4]} 10. Rfd1 {[%clk 0:04:16.8]} 10... b5 {[%clk 0:04:24.8]} 11. Be2
{[%clk 0:04:06.3]} 11... b4 {[%clk 0:04:23.4]} 12. Nb1 {[%clk 0:03:49.7]} 12...
Nxe4 {[%clk 0:04:21.7]} 13. Qd3 {[%clk 0:03:29.1]} 13... f5 {[%clk 0:04:12]} 14.
a3 {[%clk 0:03:00.4]} 14... bxa3 {[%clk 0:04:06.8]} 15. Nxa3 {[%clk 0:02:56.3]}
15... O-O {[%clk 0:04:04.2]} 16. Qc4+ {[%clk 0:02:41.6]} 16... Kh8 {[%clk
0:03:58]} 17. Bd3 {[%clk 0:02:18]} 17... Nd6 {[%clk 0:03:54.4]} 18. Qc3 {[%clk
0:02:12.3]} 18... e4 {[%clk 0:03:52.4]} 19. Bxh6 {[%clk 0:01:38.4]} 19... exd3
{[%clk 0:03:41.8]} 20. Qxg7# {[%clk 0:01:32.9]} 1-0

[Event "Live Chess"]
[Site "Chess.com"]
[Date "2024.06.01"]
[Round "-"]
[White "Pizzaman313"]
[Black "seasidecastle27"]
[Result "0-1"]
[WhiteElo "1211"]
[BlackElo "1948"]
[TimeControl "300"]
[EndTime "10:20:48 PDT"]
[Termination "seasidecastle27 won by resignation"]

1. e4 {[%clk 0:04:56.1]} 1... e6 {[%clk 0:04:58.9]} 2. d4 {[%clk 0:04:53]} 2...
d5 {[%clk 0:04:57.6]} 3. e5 {[%clk 0:04:51.2]} 3... c5 {[%clk 0:04:56.3]} 4. c3
{[%clk 0:04:49.2]} 4... Nc6 {[%clk 0:04:55.1]} 5. Nf3 {[%clk 0:04:47.6]} 5...
Bd7 {[%clk 0:04:54.2]} 6. Bd3 {[%clk 0:04:43]} 6... Qb6 {[%clk 0:04:51.8]} 7.
Bc2 {[%clk 0:04:34.2]} 7... cxd4 {[%clk 0:04:40.3]} 8. cxd4 {[%clk 0:04:30.4]}
8... Nb4 {[%clk 0:04:39.1]} 9. O-O {[%clk 0:04:18.7]} 9... Nxc2 {[%clk
0:04:35.2]} 10. Qxc2 {[%clk 0:04:16.1]} 10... Rc8 {[%clk 0:04:33.5]} 11. Nc3
{[%clk 0:04:13.7]} 11... Ne7 {[%clk 0:04:25.8]} 12. Bg5 {[%clk 0:03:55.7]} 12...
Nf5 {[%clk 0:04:22.3]} 13. Rad1 {[%clk 0:03:49.2]} 13... h6 {[%clk 0:04:20]} 14.
Bf4 {[%clk 0:03:44.7]} 14... g5 {[%clk 0:04:15.4]} 15. Be3 {[%clk 0:03:34.7]}
15... Bb4 {[%clk 0:03:58.3]} 16. a3 {[%clk 0:03:28.4]} 16... Bxc3 {[%clk
0:03:35.6]} 17. bxc3 {[%clk 0:03:28.3]} 17... Qa5 {[%clk 0:03:30.9]} 18. Qb2
{[%clk 0:02:55.5]} 18... Qxc3 {[%clk 0:03:12.1]} 19. Qxb7 {[%clk 0:02:50.2]}
19... Nxe3 {[%clk 0:03:10]} 20. fxe3 {[%clk 0:02:46.1]} 20... Qxe3+ {[%clk
0:03:05.4]} 21. Kh1 {[%clk 0:02:45.3]} 21... g4 {[%clk 0:02:44.2]} 22. Nh4
{[%clk 0:02:31.3]} 22... Qg5 {[%clk 0:02:31.9]} 23. g3 {[%clk 0:02:25.8]} 23...
Qe3 {[%clk 0:02:19.9]} 24. Rxf7 {[%clk 0:02:10]} 24... Qe4+ {[%clk 0:02:05.1]}
25. Kg1 {[%clk 0:01:48.3]} 25... Qe3+ {[%clk 0:02:02]} 26. Kh1 {[%clk 0:01:35]}
26... Qe4+ {[%clk 0:02:01]} 27. Kg1 {[%clk 0:01:30]} 27... Qe3+ {[%clk
0:02:00.2]} 28. Kf1 {[%clk 0:00:51]} 28... Rd8 {[%clk 0:01:56.7]} 29. Re1 {[%clk
0:00:25.3]} 29... Qd3+ {[%clk 0:01:48.1]} 30. Re2 {[%clk 0:00:22.4]} 30... Kxf7
{[%clk 0:01:45.6]} 0-1

[Event "Live Chess"]
[Site "Chess.com"]
[Date "2024.06.01"]
[Round "-"]
[White "matt1979"]
[Black "Bradfield133"]
[Result "0-1"]
[WhiteElo "1361"]
[BlackElo "2026"]
[TimeControl "300"]
[EndTime "10:20:59 PDT"]
[Termination "Bradfield133 won by checkmate"]

1. f4 {[%clk 0:04:55.2]} 1... c5 {[%clk 0:04:54.1]} 2. Nf3 {[%clk 0:04:51.9]}
2... d5 {[%clk 0:04:42.8]} 3. e3 {[%clk 0:04:50.5]} 3... g6 {[%clk 0:04:39.9]}
4. Bb5+ {[%clk 0:04:45.3]} 4... Nc6 {[%clk 0:04:34]} 5. O-O {[%clk 0:04:40.4]}
5... Bg7 {[%clk 0:04:32]} 6. Nc3 {[%clk 0:04:32]} 6... e6 {[%clk 0:04:28.6]} 7.
d3 {[%clk 0:04:26.2]} 7... Ne7 {[%clk 0:04:26.6]} 8. Qe1 {[%clk 0:04:18]} 8...
O-O {[%clk 0:04:23.1]} 9. Bxc6 {[%clk 0:04:15.1]} 9... Nxc6 {[%clk 0:04:17.5]}
10. e4 {[%clk 0:04:13.9]} 10... dxe4 {[%clk 0:04:10.4]} 11. dxe4 {[%clk
0:04:12.1]} 11... Nd4 {[%clk 0:03:58]} 12. Nxd4 {[%clk 0:04:10.3]} 12... cxd4
{[%clk 0:03:51.6]} 13. Ne2 {[%clk 0:04:01.3]} 13... Qb6 {[%clk 0:03:49.4]} 14.
Kh1 {[%clk 0:03:56.6]} 14... Bd7 {[%clk 0:03:37.1]} 15. Qh4 {[%clk 0:03:51.9]}
15... Bc6 {[%clk 0:03:30.3]} 16. Rf3 {[%clk 0:03:37.5]} 16... f5 {[%clk
0:03:16.8]} 17. Rh3 {[%clk 0:03:34.5]} 17... h6 {[%clk 0:02:54.4]} 18. Qg3
{[%clk 0:03:12.8]} 18... Kh7 {[%clk 0:02:38.9]} 19. e5 {[%clk 0:03:01.9]} 19...
Be4 {[%clk 0:02:29.6]} 20. c3 {[%clk 0:02:52.8]} 20... d3 {[%clk 0:02:23.6]} 21.
Nd4 {[%clk 0:02:40.9]} 21... Rfd8 {[%clk 0:02:01]} 22. Qh4 {[%clk 0:02:25.3]}
22... Rxd4 {[%clk 0:01:49]} 23. cxd4 {[%clk 0:02:23.5]} 23... Qxd4 {[%clk
0:01:47.5]} 24. Be3 {[%clk 0:02:01.9]} 24... Qxb2 {[%clk 0:01:41.1]} 25. Rc1
{[%clk 0:01:40.4]} 25... Qxg2# {[%clk 0:01:38.1]} 0-1

[Event "Live Chess"]
[Site "Chess.com"]
[Date "2024.06.01"]
[Round "-"]
[White "ogpin"]
[Black "Larchikov"]
[Result "1/2-1/2"]
[WhiteElo "2227"]
[BlackElo "1979"]
[TimeControl "300"]
[EndTime "10:21:03 PDT"]
[Termination "Game drawn - timeout vs insufficient material"]

1. a4 {[%clk 0:04:56.5]} 1... d6 {[%clk 0:04:56.8]} 2. Ra3 {[%clk 0:04:49.5]}
2... e5 {[%clk 0:04:55]} 3. g3 {[%clk 0:04:45.7]} 3... f5 {[%clk 0:04:53]} 4.
Bg2 {[%clk 0:04:43]} 4... Nf6 {[%clk 0:04:52.3]} 5. a5 {[%clk 0:04:39.7]} 5...
d5 {[%clk 0:04:49.3]} 6. b3 {[%clk 0:04:34.6]} 6... Bxa3 {[%clk 0:04:43.7]} 7.
Bxa3 {[%clk 0:04:34.5]} 7... Nbd7 {[%clk 0:04:42.2]} 8. e3 {[%clk 0:04:26]} 8...
b6 {[%clk 0:04:38.3]} 9. Ne2 {[%clk 0:04:19]} 9... c5 {[%clk 0:04:35.4]} 10. d4
{[%clk 0:04:13.7]} 10... O-O {[%clk 0:04:26.3]} 11. c4 {[%clk 0:04:12.5]} 11...
e4 {[%clk 0:04:19.6]} 12. Nbc3 {[%clk 0:04:09.5]} 12... dxc4 {[%clk 0:04:15.5]}
13. bxc4 {[%clk 0:04:01.2]} 13... Ba6 {[%clk 0:04:11.1]} 14. Qa4 {[%clk
0:03:52.6]} 14... Re8 {[%clk 0:04:07.7]} 15. O-O {[%clk 0:03:47.6]} 15... Qc7
{[%clk 0:03:56.2]} 16. d5 {[%clk 0:03:28.5]} 16... Ne5 {[%clk 0:03:51]} 17. Nb5
{[%clk 0:03:21.7]} 17... Qd7 {[%clk 0:03:34.1]} 18. Nf4 {[%clk 0:03:20.2]} 18...
Nxc4 {[%clk 0:03:26.5]} 19. Qxc4 {[%clk 0:02:56.2]} 19... Bxb5 {[%clk
0:03:23.4]} 20. Qa2 {[%clk 0:02:55.1]} 20... Bxf1 {[%clk 0:03:19.3]} 21. Bxf1
{[%clk 0:02:55]} 21... Red8 {[%clk 0:03:10]} 22. Ne6 {[%clk 0:02:38.2]} 22...
Nxd5 {[%clk 0:02:52.4]} 23. Nxd8 {[%clk 0:02:27.1]} 23... Rxd8 {[%clk
0:02:52.3]} 24. a6 {[%clk 0:02:18.3]} 24... Kh8 {[%clk 0:02:45.7]} 25. Bb2
{[%clk 0:02:11.1]} 25... b5 {[%clk 0:02:34.4]} 26. Qa5 {[%clk 0:01:55.7]} 26...
c4 {[%clk 0:02:14.6]} 27. Bd4 {[%clk 0:01:54.8]} 27... Rc8 {[%clk 0:02:07.2]}
28. h4 {[%clk 0:01:50.1]} 28... Qc7 {[%clk 0:01:51.4]} 29. Qxb5 {[%clk
0:01:47.2]} 29... c3 {[%clk 0:01:41.6]} 30. Qxd5 {[%clk 0:01:39.9]} 30... c2
{[%clk 0:01:38.2]} 31. Bb2 {[%clk 0:01:38.4]} 31... c1=Q {[%clk 0:01:13.1]} 32.
Bxc1 {[%clk 0:01:37.6]} 32... Qxc1 {[%clk 0:01:12.4]} 33. Qxf5 {[%clk
0:01:37.1]} 33... Qc2 {[%clk 0:00:52.7]} 34. h5 {[%clk 0:01:33.2]} 34... Rd8
{[%clk 0:00:36.1]} 35. h6 {[%clk 0:01:22.5]} 35... Qc3 {[%clk 0:00:22.1]} 36.
hxg7+ {[%clk 0:01:12.8]} 36... Qxg7 {[%clk 0:00:22]} 37. Qxe4 {[%clk 0:01:12.3]}
37... Rf8 {[%clk 0:00:19.2]} 38. Bd3 {[%clk 0:01:04.2]} 38... Qf7 {[%clk
0:00:15.9]} 39. Qd4+ {[%clk 0:01:01.1]} 39... Qf6 {[%clk 0:00:14.4]} 40. Qxf6+
{[%clk 0:00:57.8]} 40... Rxf6 {[%clk 0:00:14.3]} 41. Be4 {[%clk 0:00:57.4]}
41... Kg7 {[%clk 0:00:14.2]} 42. Bb7 {[%clk 0:00:55.7]} 42... Rb6 {[%clk
0:00:13.9]} 43. Kg2 {[%clk 0:00:52.8]} 43... Kf6 {[%clk 0:00:13.6]} 44. f4
{[%clk 0:00:50.9]} 44... Rb3 {[%clk 0:00:13.3]} 45. Kf3 {[%clk 0:00:50.1]} 45...
h5 {[%clk 0:00:12.7]} 46. Ke4 {[%clk 0:00:44.7]} 46... Rb4+ {[%clk 0:00:11.7]}
47. Kd5 {[%clk 0:00:42.8]} 47... Rb5+ {[%clk 0:00:10.1]} 48. Kc6 {[%clk
0:00:40.2]} 48... Rb3 {[%clk 0:00:09.5]} 49. Kc7 {[%clk 0:00:26.9]} 49... Rxe3
{[%clk 0:00:08.2]} 50. Kb8 {[%clk 0:00:26.8]} 50... Rxg3 {[%clk 0:00:07.6]} 51.
Kxa7 {[%clk 0:00:26.7]} 51... Ra3 {[%clk 0:00:06.6]} 52. Kb6 {[%clk 0:00:21.9]}
52... Kf5 {[%clk 0:00:05.9]} 53. a7 {[%clk 0:00:08.5]} 53... Rxa7 {[%clk
0:00:04.9]} 54. Kxa7 {[%clk 0:00:08.4]} 54... h4 {[%clk 0:00:03.9]} 55. Bc8+
{[%clk 0:00:08.3]} 55... Kxf4 {[%clk 0:00:02.7]} 56. Kb8 {[%clk 0:00:08.2]}
56... Kg3 {[%clk 0:00:02]} 57. Kc7 {[%clk 0:00:08.1]} 57... h3 {[%clk
0:00:01.8]} 58. Kd8 {[%clk 0:00:08]} 58... Kg2 {[%clk 0:00:00.4]} 59. Bd7 {[%clk
0:00:07.9]} 1/2-1/2

[Event "Live Chess"]
[Site "Chess.com"]
[Date "2024.06.01"]
[Round "-"]
[White "Berdgross"]
[Black "Mangoalo"]
[Result "0-1"]
[WhiteElo "592"]
[BlackElo "1010"]
[TimeControl "300"]
[EndTime "10:21:05 PDT"]
[Termination "Mangoalo won by resignation"]

1. e4 {[%clk 0:04:57.5]} 1... c6 {[%clk 0:04:57]} 2. d3 {[%clk 0:04:57.4]} 2...
d5 {[%clk 0:04:56.1]} 3. exd5 {[%clk 0:04:56]} 3... cxd5 {[%clk 0:04:56]} 4. Nf3
{[%clk 0:04:54.7]} 4... Nc6 {[%clk 0:04:55.3]} 5. Nc3 {[%clk 0:04:53.1]} 5...
Bg4 {[%clk 0:04:54.9]} 6. Be2 {[%clk 0:04:51.6]} 6... d4 {[%clk 0:04:53.7]} 7.
h3 {[%clk 0:04:46.6]} 7... Bxf3 {[%clk 0:04:52.2]} 8. Bxf3 {[%clk 0:04:45.7]}
8... dxc3 {[%clk 0:04:51]} 9. bxc3 {[%clk 0:04:43.6]} 9... e6 {[%clk 0:04:47.1]}
10. O-O {[%clk 0:04:41.3]} 10... Bd6 {[%clk 0:04:44.5]} 11. Bb2 {[%clk
0:04:35.8]} 11... Qf6 {[%clk 0:04:42.9]} 12. Rb1 {[%clk 0:04:33.8]} 12... Qf4
{[%clk 0:04:41]} 13. g3 {[%clk 0:04:28.6]} 13... Qg5 {[%clk 0:04:32]} 14. c4
{[%clk 0:04:23.8]} 14... Bxg3 {[%clk 0:04:30.4]} 15. fxg3 {[%clk 0:04:21.6]}
15... Qxg3+ {[%clk 0:04:29.5]} 16. Kh1 {[%clk 0:04:16.9]} 16... Qxh3+ {[%clk
0:04:25.1]} 17. Kg1 {[%clk 0:04:14]} 17... Ne5 {[%clk 0:04:22.3]} 18. Bxe5
{[%clk 0:04:06.9]} 18... f6 {[%clk 0:04:18.7]} 19. Bxb7 {[%clk 0:04:01.1]} 19...
Rd8 {[%clk 0:04:10.2]} 20. Bg2 {[%clk 0:03:56.4]} 20... Qh4 {[%clk 0:03:48.6]}
21. Bc7 {[%clk 0:03:48.3]} 21... Rd4 {[%clk 0:03:41.7]} 22. Bc6+ {[%clk
0:03:41.5]} 22... Kf7 {[%clk 0:03:39.3]} 23. Qf3 {[%clk 0:03:24.4]} 23... Rg4+
{[%clk 0:03:37]} 24. Qxg4 {[%clk 0:02:59.1]} 24... Qxg4+ {[%clk 0:03:35.4]} 25.
Kf2 {[%clk 0:02:42.1]} 25... Nh6 {[%clk 0:03:32.9]} 26. Rb7 {[%clk 0:02:36.1]}
26... Qf5+ {[%clk 0:03:17.8]} 27. Ke1 {[%clk 0:02:29.9]} 27... Qh3 {[%clk
0:02:45.6]} 28. Bf4+ {[%clk 0:02:23.7]} 28... Kg6 {[%clk 0:02:42.2]} 29. Rg1+
{[%clk 0:02:16.5]} 29... Ng4 {[%clk 0:02:40.6]} 30. Be4+ {[%clk 0:02:07.6]}
30... f5 {[%clk 0:02:36.4]} 31. Bg2 {[%clk 0:01:55.9]} 31... Qh4+ {[%clk
0:02:20.6]} 32. Kd2 {[%clk 0:01:45]} 32... Qf2+ {[%clk 0:02:16.9]} 33. Kc3
{[%clk 0:01:22.5]} 33... Qxg1 {[%clk 0:02:14]} 34. Bh3 {[%clk 0:01:12.5]} 34...
Qa1+ {[%clk 0:02:06.3]} 35. Rb2 {[%clk 0:00:47.7]} 35... e5 {[%clk 0:01:52]} 36.
Bxg4 {[%clk 0:00:41.7]} 36... exf4 {[%clk 0:01:50.1]} 37. Bf3 {[%clk 0:00:32.6]}
37... Rb8 {[%clk 0:01:46.3]} 0-1